Cogmind - Beta 9.4 *** ADVENTURER MODE // 2020.08.20 @ 17:10:35 Player: Scyralis Result: Self-destructed Performance ------------- Evolutions (1) 500 Regions Visited (3) 600 Robots Destroyed (12) 60 Value Destroyed (177) 177 Prototype IDs (6) 120 Alien Tech Used (0) 0 Bonus (0) 0 TOTAL SCORE: 1457 Bonus ------- None Cogmind --------- Core Integrity 278/400 Matter 211/300 Energy 100/100 System Corruption 0% Temperature Cool (0) Movement Core (200) Ox3 Location -9/Storage Parts ------- > --- POWER (1) -------- (None) > --- PROPULSION (2) --- (None) > --- UTILITY (4) ------ Small Storage Unit Improved Terrain Scanner Improved ECM Suite > --- WEAPON (2) ------- Datajack Mining Claw > --- INVENTORY (6) ---- Airjet Flight Unit Peak State ------------ > --- POWER ------------ Light Ion Engine > --- PROPULSION ------- Airjet Airjet > --- UTILITY ---------- Small Storage Unit Improved Terrain Scanner Improved ECM Suite Shield Generator > --- WEAPON ----------- Medium Laser Datajack > --- INVENTORY -------- Airjet Flight Unit [Rating: 17] Favorites ----------- Power Light Ion Engine Engine Light Ion Engine Propulsion Airjet Hover Unit Airjet Flight Unit Flight Unit Utility Small Storage Unit Device Shield Generator Storage Small Storage Unit Weapon Small Laser Energy Gun Small Laser Slashing Weapon Mining Claw Special Melee Weapon Datajack Build | -11 -10 -9 -9 ------- Run | Scr Mat Mat Sto Slots Evolved 2 | . . 2 . Power . | . . . . Propulsion . | . . . . Utility 2 | . . 2 . Weapon . | . . . . Parts Attached 26 | 1 13 5 7 Power 3 | 1 2 . . Engine 3 | 1 2 . . Core . | . . . . Reactor . | . . . . Propulsion 10 | . 5 4 1 Treads . | . . . . Leg . | . . . . Wheel . | . . . . Hover 6 | . 3 2 1 Flight 4 | . 2 2 . Utility 8 | . 4 1 3 Device 4 | . . 1 3 Storage 4 | . 4 . . Processor . | . . . . Hackware . | . . . . Protection . | . . . . Artifact . | . . . . Weapon 5 | . 2 . 3 Energy Gun 3 | . 2 . 1 Energy Cannon . | . . . . Ballistic Gun . | . . . . Ballistic Cannon . | . . . . Launcher . | . . . . Special Weapon . | . . . . Impact Weapon . | . . . . Slashing Weapon 1 | . . . 1 Piercing Weapon . | . . . . Special Melee Weapon 1 | . . . 1 Unidentified Prototypes . | . . . . Parts Lost 10 | . 5 . 5 Power 1 | . . . 1 Propulsion 5 | . 2 . 3 Utility 1 | . . . 1 Weapon 3 | . 3 . . Highest Loss Streak 4 | . 4 . 4 Average Slot Usage (%) 68 | . 65 43 88 Engine 11 | . 14 11 9 Hover 15 | . 14 6 20 Flight 4 | . 5 12 . Device 10 | . . 3 31 Storage 9 | . 7 11 11 Energy Gun 12 | . 22 . 2 Special Melee Weapon 3 | . . . 11 Naked Turns . | . . . . Heaviest Build 15 | 3 9 9 15 Greatest Support 18 | 3 12 18 18 Greatest Overweight (x) 2 | . 2 1 1 Average Overweight (x) . | . . . . Largest Inventory Capacity 10 | 4 10 6 6 Average Capacity 5 | 4 5 6 6 Most Carried 6 | 1 6 6 5 Average Carried 2 | . 2 4 2 Final Capacity 6 | 4 6 6 6 Final Carried 6 | . 4 6 2 Class Distribution -------------------- 100% | Mutant Dominant Class ---------------- Mutant | -10/Materials Mutant | -9/Materials Mutant | -9/Storage Resources | -11 -10 -9 -9 ----------- Run | Scr Mat Mat Sto Matter Collected 315 | 210 90 . 15 Remotely . | . . . . Salvage Created 198 | . 169 . 29 Parts 25 | . 24 . 1 Haulers Intercepted . | . . . . Recyclers Shooed 1 | . . . 1 Parts Field Recycled . | . . . . Retrieved Matter . | . . . . Parts Self-Destructed . | . . . . Prevented . | . . . . Kills | -11 -10 -9 -9 ------- Run | Scr Mat Mat Sto Combat Hostiles Destroyed 9 | . 7 . 2 Melee 2 | . . . 2 Guns 6 | . 6 . . AOE 1 | . 1 . . Classes Destroyed 4 | . 4 . . Worker 1 | . 1 . . Watcher 2 | . 2 . . Swarmer 8 | . 6 . 2 Grunt 1 | . 1 . . Best Kill Streak 5 | . 5 . 2 Combat Bots Only 4 | . 4 . 2 Max Kills in Single Turn 2 | . 2 . 1 Gunslinging . | . . . . Exploded 1 | . 1 . . Melee 1 | . . . 1 Uniques/NPCs Destroyed . | . . . . Combat | -11 -10 -9 -9 -------- Run | Scr Mat Mat Sto Damage Taken 740 | . 324 50 366 Core 236 | . 114 9 113 Absorbed by Shields 32 | . . . 32 Core Remaining (%) 77 | 100 54 . . Volleys Fired 19 | . 16 . 3 Largest 2 | . 2 . 1 Hottest 80 | . 80 . 50 Shots Fired 35 | . 32 . 3 Gun 35 | . 32 . 3 Cannon . | . . . . Launcher . | . . . . Special . | . . . . Kinetic . | . . . . Thermal 35 | . 32 . 3 Explosive . | . . . . Electromagnetic . | . . . . Robot Hit Streak 5 | . 5 . 4 Robot Miss Streak 2 | . 2 . . Penetration Max . | . . . . Secondary Targets . | . . . . Shots Hit Robots 28 | . 16 . 12 Core Hits 12 | . 10 . 2 Critical Hits . | . . . . Critical Kills . | . . . . Critical Parts Destroyed . | . . . . Melee Attacks 11 | . . . 11 Impact . | . . . . Slashing 10 | . . . 10 Piercing . | . . . . Sneak Attacks 1 | . . . 1 Combat Hostiles . | . . . . Follow-up Attacks . | . . . . Damage Inflicted 632 | . 337 . 295 Guns 205 | . 179 . 26 Cannons . | . . . . Explosions 158 | . 158 . . Melee 249 | . . . 249 Ramming 20 | . . . 20 Kinetic . | . . . . Thermal 363 | . 337 . 26 Explosive . | . . . . Electromagnetic . | . . . . Impact . | . . . . Slashing 249 | . . . 249 Piercing . | . . . . Highest Corruption 1 | . 1 . . Average Corruption 1 | . 1 . . Corruption Purged . | . . . . Overload Shots . | . . . . Overflow Damage 56 | . 44 . 12 Projectiles . | . . . . Explosions 44 | . 44 . . Melee 12 | . . . 12 Knockbacks . | . . . . Impact . | . . . . Kinetic . | . . . . Secondary . | . . . . Self-Inflicted Damage 118 | . 109 . 9 Shots 2 | . 2 . . Rammed 2 | . . . 2 Targets Rammed 2 | . . . 2 Kicked . | . . . . Crushed . | . . . . Highest Temperature 146 | . 146 . 16 Average Temperature 50 | . 54 . 9 Received Heat Transfer 172 | . 36 36 100 Siege Activations . | . . . . Robots Corrupted . | . . . . Combat Hostiles . | . . . . Parts Fried . | . . . . Impact Corruptions . | . . . . Robots Melted . | . . . . Combat Hostiles . | . . . . Parts Melted 2 | . 2 . . Heat Transferred 648 | . 574 . 74 Parts Sabotaged . | . . . . Parts Stolen . | . . . . Parts Stripped . | . . . . Power Chain Reactions . | . . . . Missiles Intercepted . | . . . . Alert | -11 -10 -9 -9 ------- Run | Scr Mat Mat Sto Peak Influence 222 | . 222 146 102 Average Influence 82 | . 83 96 78 Maximum Alert Level 1 | . 1 . . Low Security (%) 97 | 100 94 100 100 Level 1 2 | . 5 . . Level 2 . | . . . . Level 3 . | . . . . Level 4 . | . . . . Level 5 . | . . . . High Security . | . . . . Max Security . | . . . . Squads Dispatched 4 | . . 4 . Investigation 1 | . . 1 . Extermination . | . . . . Reinforcement 3 | . . 3 . Assault . | . . . . Garrison . | . . . . Intercept . | . . . . Construction Impeded . | . . . . Haulers Reinforced . | . . . . Stealth | -11 -10 -9 -9 --------- Run | Scr Mat Mat Sto Distress Signals 3 | . 1 1 1 Communications Jammed . | . . . . Distress Signals . | . . . . Times Spotted 48 | . 13 20 15 Peak Tracking Total 13 | . 5 13 11 Tactical Retreats 6 | . 2 1 3 Traps | -11 -10 -9 -9 ------- Run | Scr Mat Mat Sto Traps Triggered 2 | . 2 . . Indirectly . | . . . . Trap Hack Attempts . | . . . . Triggered . | . . . . Disarmed . | . . . . Reprogrammed . | . . . . Reused . | . . . . Traps Extracted . | . . . . Installed . | . . . . Triggered . | . . . . Machines | -11 -10 -9 -9 ---------- Run | Scr Mat Mat Sto Machines Disabled 3 | . 3 . . Max in Single Turn 3 | . 3 . . Machines Sabotaged . | . . . . Garrisons Compromised . | . . . . Overloaded Fab Kills . | . . . . Fab Network Shutdowns . | . . . . Hacking | -11 -10 -9 -9 --------- Run | Scr Mat Mat Sto Machines Accessed 14 | . 7 4 3 Terminals 9 | . 4 3 2 Fabricators . | . . . . Repair Stations 1 | . 1 . . Recycling Units 3 | . 2 . 1 Scanalyzers 1 | . . 1 . Garrison Access . | . . . . Total Hacks 38 | . 20 12 6 Successful 22 | . 14 6 2 Failed 16 | . 6 6 4 Catastrophic 2 | . 1 1 . Database Lockouts . | . . . . Manual 20 | . 11 6 3 Terminals 26 | . 13 8 5 Fabricators . | . . . . Repair Stations 3 | . 3 . . Recycling Units 5 | . 4 . 1 Scanalyzers 4 | . . 4 . Garrison Access . | . . . . Terminal Hacks 10 | . 8 1 1 Robot Analysis 4 | . 4 . . Prototype ID Bank 5 | . 4 . 1 Recall Reinforcements 1 | . . 1 . Fabricator Hacks . | . . . . Repair Station Hacks 1 | . 1 . . Refit 1 | . 1 . . Recycling Unit Hacks 4 | . 3 . 1 Retrieve Components 4 | . 3 . 1 Scanalyzer 4 | . . 4 . Insert Component 2 | . . 2 . Analyze 2 | . . 2 . Garrison Access Hacks . | . . . . Unauthorized Hacks 7 | . 4 3 . Terminals 3 | . 2 1 . Assimilate 1 | . . 1 . Botnet 2 | . 2 . . Fabricators . | . . . . Repair Stations . | . . . . Recycling Units . | . . . . Scanalyzers . | . . . . Garrison Access . | . . . . Data Cores Recovered . | . . . . Used . | . . . . Hacking Detections 11 | . 5 4 2 Full Trace Events 1 | . . 1 . Feedback Events . | . . . . Feedback Blocked . | . . . . Robot Schematics Acquired . | . . . . Robots Built . | . . . . Matter . | . . . . Time . | . . . . Total Robot Build Rating . | . . . . Part Schematics Acquired 2 | . . 2 . Parts Built . | . . . . Matter . | . . . . Time . | . . . . Total Part Build Rating . | . . . . Parts Repaired . | . . . . Time . | . . . . Parts Recycled . | . . . . Recycled Matter . | . . . . Retrieved Matter . | . . . . Retrieved Components 2 | . 1 . 1 Parts Scanalyzed 2 | . . 2 . Part Schematics Acquired 2 | . . 2 . Parts Damaged . | . . . . Bothacking | -11 -10 -9 -9 ------------ Run | Scr Mat Mat Sto Used RIF Installer . | . . . . Robots Hacked . | . . . . Non-combat . | . . . . Combat . | . . . . Robot Hacks Applied . | . . . . Relay Couplers Released . | . . . . Robots Rewired . | . . . . Allies Hacked . | . . . . Hacks Repelled . | . . . . Allies | -11 -10 -9 -9 -------- Run | Scr Mat Mat Sto Total Allies 1 | . . 1 . Largest Group 1 | . . 1 . Highest-Rated Group 10 | . . 10 . Highest-Rated Ally 10 | . . 10 . Total Orders . | . . . . Ally Attacks . | . . . . Total Damage . | . . . . Kills . | . . . . Allies Corrupted . | . . . . Allies Melted . | . . . . Intel | -11 -10 -9 -9 ------- Run | Scr Mat Mat Sto Robot Analysis Total 4 | . 4 . . Derelict Logs Recovered . | . . . . Drone Launches . | . . . . Drone Recoveries . | . . . . Exploration | -11 -10 -9 -9 ------------- Run | Scr Mat Mat Sto Turns Passed 608 | 18 293 111 186 Spaces Moved 845 | 31 408 192 214 Core 91 | 31 60 . . Treads . | . . . . Legs . | . . . . Wheels . | . . . . Hover 486 | . 231 41 214 Flight 268 | . 117 151 . Fastest Speed 37 | 50 37 37 56 Average Speed 53 | 50 52 51 57 Slowest Speed 150 | 50 150 120 120 Overloaded Moves . | . . . . Propulsion Burnouts . | . . . . Robots Hopped 5 | . . 5 . Cave-ins Triggered . | . . . . Exploration Rate (%) 31 | 2 62 30 31 Regions Visited 3 Branch Regions 1 Pre-discovered Areas . | . . . . Known Exits Taken . | . . . . Unknown Exits Taken 3 | 1 1 1 . Scrap Searched . | . . . . Spaces Dug . | . . . . Terrain Destroyed 46 | . 46 . . Melee . | . . . . Projectile . | . . . . AOE 46 | . 46 . . Actions | -11 -10 -9 -9 --------- Run | Scr Mat Mat Sto Total 944 | 32 457 202 253 Wait 12 | . . . 12 Move 832 | 30 407 181 214 Hop 5 | . . 5 . Pick Up 25 | 1 15 6 3 Fast Attach . | . . . . Attach 22 | 1 9 5 7 Detach 3 | . 1 2 . Swap 4 | . 4 . . Drop 9 | . 5 3 1 Fire 19 | . 16 . 3 Melee 11 | . . . 11 Ram 2 | . . . 2 Kick . | . . . . Crush . | . . . . Escape Stasis . | . . . . Rewire . | . . . . Trap . | . . . . Miscellaneous . | . . . . Route ------- -11/Scrapyard -10/Materials (discovered 2 exits: *Mat x2) -9/Materials (discovered 2 exits: [*Min] / *Sto) -9/Storage History --------- Turn | Location | Event 10 | -11/Scrapyard | Discovered new exit (range 16) 19 | -11/Scrapyard | Entered Materials 101 | -10/Materials | Discovered new exit (range 15) 279 | -10/Materials | Discovered new exit (range 16) 303 | -10/Materials | Build established: Mutant 312 | -10/Materials | Entered another Materials area 312 | -9/Materials | Evolved 2 slots: Utility x2 336 | -9/Materials | Lost 4 parts (2n2w) 382 | -9/Materials | Discovered new exit (range 9) 405 | -9/Materials | Discovered new exit (range 5) 423 | -9/Materials | Entered Storage 609 | -9/Storage | Self-destructed Last Messages --------------- 00578_ Lgt. Assault Rifle severed. 00581_ K-01 Serf collects debris. 00581_ Sneak attack on R-06 Scavenger. 00582_ K-01 Serf collects debris. 00583_ Shield Generator destroyed. 00584_ K-01 Serf collects debris. 00589_ S-10 Pest destroyed. 00589_ K-01 Serf collects debris. 00590_ R-06 Scavenger collects Lgt. Assault Rifle. 00590_ K-01 Serf collects debris. 00591_ W-16 Scout distress signal alerts nearby ally. 00592_ Acquired 15 matter. 00592_ K-01 Serf collects debris. 00595_ Destroyed Sensor Array. 00597_ Airjet destroyed. 00597_ K-01 Serf collects debris. 00600_ R-06 Scavenger collects Lgt. Ion Engine. 00602_ Airjet destroyed. 00603_ Destroyed Flight Unit. 00606_ S-10 Pest destroyed. Map ----- +----------------------------------------------------+ | ?????????????????????????????????# ?????? ?????# | | ?????????????????????????????????# ????????????# | | ????????????????????????????????## ????????????# | | ????????????????????????????????? #???????????# | | ????????????????????????????????? +??????????## | | ??????????????????????????? ????? #??????????# | | ?????????????????????????????????# #??????????## | | ?????????????????????????????????# #???????????? | | ?????????????????????????????????# ##?#????????? | | ????????????????????????????????## ###?????????? | | ?????????????????????????????????# """?????????? | | ????????????????????????????????## G??????????? | | ???????????????????????#####+##### ""???????#### | | ?????????????????????#?# ############ | | ???????????????????????# r ^ + | | ???????????????#???????# ############ | | ???????????????????????# u########/######?#????# | | ???????????????????????# #????# =[ ##?????# | | ???????????????????????# ###??# #??????# | | ???????????????? ?? ???# ""#??# #?????## | | ?????????????# ????????# Y"##?# #??????# | | ?????????????# ??????# ""##?# #??????# | | ?????????????# ?????# ###### #??????## | | ??????????????? ???# Y / #???#???? | | ?????????????? """ ## Y###### #???????? | | ?????????????? """ Yr @ #????# !#???????# | | ?????????????? """ ###/##????##########???????? | | ??????????????? ???? ??? ???????????????#??? | | ??????????????#+##??????"""????????????????????##? | | ??????????????????????? """ ??????????????????#??? | | ??????????????????????? """ ?????????#???#???????? | | ???????????????????#??# ????????????????????? | | ??????????????????????# ????????????????????? | | ??????????????????????+ ???????????????????? | | ??????????????????????#? ? ???????????????????? | | ????????????????????????? ??####??????????#??????? | | ?????????????????????????????????????????????????? | | ????????????????????????"???#?????????#??????????? | | ?????????????????????????????????????????????????? | | | | | | | | | | | | | | | | | | | | | | | +----------------------------------------------------+ Best States ------------- Heat Dissipation 28 Energy Generation 10 Energy Capacity 125 Matter Stores 300 Matter Capacity 300 Sight Range 16 Terrain Scan Range 16 Terrain Scan Density 10 Resistance: KI 20 Resistance: TH 20 Resistance: EX 20 Resistance: EM 20 Resistance: I 20 Resistance: S 20 Resistance: P 20 Evasion (%) 62 Offensive Hacking 10 Item Schematics ----------------- Datajack | -9/Materials | Scanalyzed Flight Unit | -9/Materials | Scanalyzed Robot Schematics ------------------ None Fabricated ------------ Nothing Alien Tech Used ----------------- None Achievements -------------- None Challenges ------------ None Game ------ Seed DeliveryTrackerSplitter Manual? 0 Play Time 00:09:34 Cumulative 472.7 hours Start 2020.08.20 @ 17:02:58 End 2020.08.20 @ 17:10:35 Sessions 1 Manual Loads 0 Difficulty Adventurer Special Mode None Game No. 127 Rogue 1 Adventurer 126 Explorer 0 Win Type - Total 2 Types 1/0/0/1/0/0/0 Lore% 45 Gallery% 68 Achievement% 52 Wizard Run 0 Options --------- ASCII 0 Keyboard 0 Movement Numpad Keybinds 0 Fullscreen 1 Font 12/Smallcaps Map View 83x54 Tactical HUD 1 Map Filters NONE Filters NONE Steam X RUN: 62b94a9a-90f2-4589-8ceb-6faf466846ca